Cogmind - Beta 15 @@@ ROGUE MODE // 2025.06.12 @ 20:12:46 Player: the Result: Self-destructed Performance ------------- Evolutions (1) 500 Regions Visited (2) 400 Robots Destroyed (47) 235 Value Destroyed (822) 822 Prototype IDs (3) 60 Alien Tech Used (0) 0 Bonus (0) 0 TOTAL SCORE: 2017 Bonus ------- None Cogmind --------- Core Integrity 106/400 Matter 291/300 Energy 79/100 System Corruption 0% Temperature Cool (9) Movement Core (200) Ox3 Location -9/Materials Parts ------- > --- POWER (1) -------- (None) > --- PROPULSION (2) --- (None) > --- UTILITY (4) ------ Medium Storage Unit Transport Network Coupler Hacking Suite > --- WEAPON (2) ------- (None) > --- INVENTORY (10) --- Ion Engine Armored Wheel Heat Sink Structural Scanner Hardened Light Armor Plating Particle Cannon Shotgun Light Cannon Peak State ------------ > --- POWER ------------ Improved Ion Engine > --- PROPULSION ------- Wheel Wheel > --- UTILITY ---------- Heat Sink Cargo Storage Unit Hacking Suite > --- WEAPON ----------- Medium Laser Medium Laser > --- INVENTORY -------- Ion Engine Ion Engine Light Nuclear Core Light Treads Light Treads Light Treads Light Treads Wheel Wheel Wheel Hover Unit Hover Unit Hover Unit Hover Unit Heat Sink Medium Storage Unit Large Storage Unit High-capacity Matter Pod Structural Scanner Structural Scanner Seismic Detector Seismic Detector Transport Network Coupler Light Armor Plating Tractor Beam Small Laser Small Laser Light Cannon Light Cannon Mining Laser [Rating: 15] Favorites ----------- Power Ion Engine Engine Ion Engine Propulsion Wheel Treads Light Treads Wheel Wheel Hover Unit Improved Hover Unit Utility Seismic Detector Device Seismic Detector Storage Large Storage Unit Processor Transport Network Coupler Hackware Hacking Suite Protection Light Armor Plating Weapon Medium Laser Energy Gun Medium Laser Ballistic Gun Light Assault Rifle Ballistic Cannon Light Cannon Special Weapon Mining Laser Build | -11 -10 -9 ------- Run | Yrd Mat Mat Slots Evolved 2 | . . 2 Power . | . . . Propulsion . | . . . Utility 2 | . . 2 Weapon . | . . . Parts Attached 43 | 8 20 15 Power 7 | 1 2 4 Engine 7 | 1 2 4 Core . | . . . Reactor . | . . . Propulsion 12 | 3 6 3 Treads 2 | . 2 . Leg . | . . . Wheel 8 | 3 4 1 Hover 2 | . . 2 Flight . | . . . Utility 12 | 2 4 6 Device 5 | 1 2 2 Storage 4 | 1 2 1 Processor 1 | . . 1 Hackware 1 | . . 1 Protection 1 | . . 1 Artifact . | . . . Weapon 12 | 2 8 2 Energy Gun 2 | 2 . . Energy Cannon . | . . . Ballistic Gun 7 | . 7 . Ballistic Cannon 1 | . . 1 Launcher . | . . . Special Weapon 2 | . 1 1 Impact Weapon . | . . . Slashing Weapon . | . . . Piercing Weapon . | . . . Special Melee Weapon . | . . . Unidentified Prototypes 1 | . . 1 Parts Lost 10 | . 4 6 Power 2 | . 1 1 Propulsion 4 | . 2 2 Utility 1 | . . 1 Weapon 3 | . 1 2 Highest Loss Streak 4 | . 2 4 To Critical Strikes . | . . . Average Backups 16 | 4 15 17 Power 1 | . 1 2 Propulsion 4 | 2 3 5 Utility 6 | . 6 6 Weapon 3 | 1 3 3 Tool/Special . | . . . Unused Backups 30 | . 3 27 Power 8 | . 1 7 Propulsion 8 | . . 8 Utility 8 | . 2 6 Weapon 6 | . . 6 Tool/Special . | . . . Average Slot Usage (%) 90 | . 95 80 Engine 11 | . 13 5 Wheel 21 | . 27 12 Hover 3 | . . 8 Device 10 | . 9 11 Storage 12 | . 14 11 Processor 1 | . . 3 Hackware 3 | . . 9 Energy Gun 10 | . 10 10 Ballistic Gun 10 | . 15 . Special Weapon 2 | . 1 4 Peak Build Rating 15 | 7 10 15 Average Rating 9 | 5 8 11 On Entrance 5 | . 7 10 Naked Turns . | . . . Heaviest Build 154 | 13 149 154 Greatest Support 40 | 26 40 20 Greatest Overweight (x) 7 | . 7 7 Average Overweight (x) 2 | . 2 2 Largest Inventory Capacity 30 | 8 30 30 Average Capacity 19 | 7 19 21 Most Carried 30 | 8 30 30 Average Carried 16 | 4 15 17 Final Capacity 30 | 8 30 10 Final Carried 30 | 8 30 8 Class Distribution -------------------- 35% | Hauler-Mutant 32% | Mutant 31% | Scavenger-Mutant Dominant Class ---------------- Scavenger-Mutant | -10/Materials Hauler-Mutant | -9/Materials Resources | -11 -10 -9 ----------- Run | Yrd Mat Mat Matter Collected 1440 | 251 820 369 Remotely . | . . . Salvage Created 1266 | 51 635 580 Parts 100 | 6 61 33 Haulers Intercepted 3 | . 2 1 Recyclers Shooed . | . . . Parts Field Recycled . | . . . Retrieved Matter . | . . . Parts Self-Destructed . | . . . Prevented . | . . . Kills | -11 -10 -9 ------- Run | Yrd Mat Mat Combat Hostiles Destroyed 27 | . 13 14 Guns 23 | . 13 10 Cannons 1 | . . 1 AOE 2 | . . 2 Classes Destroyed 10 | 1 7 2 Worker 2 | . 2 . Builder 4 | . 3 1 Tunneler 4 | 2 2 . Hauler 3 | . 2 1 Recycler 1 | . . 1 Operator 2 | . 2 . Watcher 4 | . 3 1 Swarmer 13 | . 9 4 Grunt 12 | . 4 8 Sentry 2 | . . 2 Best Kill Streak 7 | 1 6 7 Combat Bots Only 6 | . 6 5 Max Kills in Single Turn 5 | 1 2 5 Gunslinging . | . . . Exploded 2 | . . 2 Melee . | . . . Uniques/NPCs Destroyed . | . . . Combat | -11 -10 -9 -------- Run | Yrd Mat Mat Hostile Shots Fired 161 | . 61 100 Missed 50 | . 13 37 Hits 111 | . 48 63 Projectile 111 | . 48 63 Critical Strikes 1 | . . 1 Damage Taken 1315 | . 492 823 Core 365 | . 71 294 Absorbed by Shields . | . . . Regen/Repaired (Parts) 24 | . 24 . Core Remaining (%) 85 | 100 71 . Volleys Fired 175 | 5 118 52 Largest 2 | 2 2 2 Hottest 100 | 100 100 100 Shots Fired 314 | 10 224 80 Gun 278 | 10 212 56 Cannon 11 | . . 11 Launcher . | . . . Special 25 | . 12 13 Kinetic 199 | . 188 11 Thermal 115 | 10 36 69 Explosive . | . . . Electromagnetic . | . . . Robot Hit Streak 9 | 2 8 9 Robot Miss Streak 4 | 2 4 3 Penetration Max . | . . . Secondary Targets 3 | . 1 2 Max Gunslinging Chain 1 | . 1 1 Shots Hit Robots 177 | 5 123 49 Core Hits 74 | 2 47 25 Critical Kills 1 | . 1 . Critical Parts Destroyed 1 | . 1 . Critical Strikes 6 | . 3 3 Burn 3 | . 1 2 Destroy 2 | . 2 . Blast 1 | . . 1 Melee Attacks . | . . . Impact . | . . . Slashing . | . . . Piercing . | . . . Sneak Attacks . | . . . Combat Hostiles . | . . . Follow-up Attacks . | . . . Damage Inflicted 2319 | 63 1151 1105 Guns 1737 | 63 1139 535 Cannons 126 | . . 126 Explosions 438 | . . 438 Melee . | . . . Ramming 18 | . 12 6 Kinetic 1028 | . 902 126 Thermal 835 | 63 237 535 Explosive 438 | . . 438 Electromagnetic . | . . . Impact . | . . . Slashing . | . . . Piercing . | . . . Highest Corruption 1 | . 1 . Average Corruption 1 | . 1 . Corruption Purged . | . . . Corruption Blocked . | . . . Effects 13 | . 13 . Message Errors 2 | . 2 . Matter Fused 3 | . 3 . Heat Flow Errors 1 | . 1 . Energy Discharges 5 | . 5 . Data Loss (minor) 2 | . 2 . Overload Shots . | . . . Overflow Damage 123 | . . 123 Projectiles . | . . . Explosions 123 | . . 123 Melee . | . . . Knockbacks 2 | . . 2 Impact . | . . . Kinetic 2 | . . 2 Secondary . | . . . Self-Inflicted Damage 105 | . 6 99 Shots 1 | . . 1 Rammed 5 | . 1 4 Targets Rammed 5 | . 1 4 Kicked . | . . . Crushed . | . . . Highest Temperature 176 | 176 138 112 Average Temperature 31 | 84 27 22 Received Heat Transfer 387 | . 120 267 Siege Activations . | . . . Martial Activations . | . . . Shielding Activations . | . . . Robots Disrupted . | . . . Combat Hostiles . | . . . Robots Corrupted . | . . . Combat Hostiles . | . . . Parts Fried . | . . . Impact Corruptions . | . . . Robots Melted 1 | . . 1 Combat Hostiles 1 | . . 1 Parts Melted 6 | . 1 5 Heat Transferred 2701 | 185 777 1739 Parts Sabotaged . | . . . Parts Stolen . | . . . Parts Stripped . | . . . Power Chain Reactions . | . . . Alert | -11 -10 -9 ------- Run | Yrd Mat Mat Maximum Alert Level 1 | . 1 . Low Security (%) 97 | 100 96 100 Level 1 2 | . 3 . Level 2 . | . . . Level 3 . | . . . Level 4 . | . . . Level 5 . | . . . High Security . | . . . Max Security . | . . . Peak Influence 223 | 5 223 199 Initial 3 | . 3 . Average 48 | 1 39 69 Influence Increases 1008 | 10 525 473 Destroy 0b10 Robot/C 540 | . 260 280 Destroy 0b10 Robot/NC 100 | 10 70 20 Destroy Leader 104 | . 60 44 Successful Hack 23 | . 19 4 Disable Machine 15 | . . 15 Destroy Structure 46 | . 11 35 Partial Spotted 15 | . . 15 Lose Combat Pursuer 165 | . 105 60 Influence Decreases 1008 | 5 530 473 Entered New Map 2 | . 2 . Time Decay 669 | 5 349 315 Lost Part 89 | . 40 49 Purge Threat 248 | . 139 109 Squads Dispatched 1 | . 1 . Investigation . | . . . Extermination . | . . . Reinforcement 1 | . 1 . Assault . | . . . Garrison . | . . . Intercept . | . . . Searches Triggered . | . . . Construction Impeded . | . . . Haulers Reinforced . | . . . Active Scanning Responses . | . . . Cargo Convoy Interrupts . | . . . Stealth | -11 -10 -9 --------- Run | Yrd Mat Mat Distress Signals 4 | . 1 3 Communications Jammed . | . . . Distress Signals . | . . . Times Spotted 64 | . 32 32 Peak Tracking Total 7 | . 7 6 Tactical Retreats 6 | . 3 3 Traps | -11 -10 -9 ------- Run | Yrd Mat Mat Traps Triggered 2 | . 2 . Indirectly . | . . . Trap Hack Attempts . | . . . Triggered . | . . . Disarmed 6 | . 6 . Reprogrammed . | . . . Reused . | . . . Traps Extracted . | . . . Installed . | . . . Triggered . | . . . Machines | -11 -10 -9 ---------- Run | Yrd Mat Mat Machines Disabled 1 | . . 1 Max in Single Turn 1 | . . 1 Machines Repaired . | . . . Machines Dismantled . | . . . Machines Sabotaged . | . . . Overloaded Fab Kills . | . . . Hacking | -11 -10 -9 --------- Run | Yrd Mat Mat Machines Accessed 15 | . 9 6 Terminals 12 | . 7 5 Fabricators . | . . . Repair Stations 1 | . 1 . Recycling Units 2 | . 1 1 Scanalyzers . | . . . Garrison Access . | . . . Total Hacks 41 | . 30 11 Successful 22 | . 17 5 Failed 19 | . 13 6 Catastrophic 1 | . 1 . Database Lockouts . | . . . Manual 24 | . 16 8 Terminals 34 | . 24 10 Fabricators . | . . . Repair Stations 4 | . 4 . Recycling Units 3 | . 2 1 Scanalyzers . | . . . Garrison Access . | . . . Terminal Hacks 8 | . 6 2 Record 1 | . 1 . Prototype ID Bank 1 | . 1 . Recycling Unit Index 1 | . . 1 Alert Level 1 | . 1 . Unreport Threat 2 | . 1 1 Locate Traps 1 | . 1 . Disarm Traps 1 | . 1 . Fabricator Hacks . | . . . Repair Station Hacks 4 | . 4 . Scan Component 2 | . 2 . Repair 2 | . 2 . Recycling Unit Hacks . | . . . Scanalyzer . | . . . Garrison Access Hacks . | . . . Unauthorized Hacks 10 | . 7 3 Terminals 8 | . 6 2 Assimilate 1 | . 1 . Botnet 6 | . 4 2 Operators 1 | . 1 . Fabricators . | . . . Repair Stations . | . . . Recycling Units 2 | . 1 1 Mask 2 | . 1 1 Scanalyzers . | . . . Garrison Access . | . . . Data Cores Recovered . | . . . Used . | . . . Hacking Detections 12 | . 7 5 Full Trace Events 1 | . 1 . Feedback Events . | . . . Feedback Blocked . | . . . Robot Schematics Acquired . | . . . Robots Built . | . . . Authchips . | . . . Time . | . . . Total Robot Build Rating . | . . . Part Schematics Acquired . | . . . Parts Built . | . . . Authchips . | . . . Time . | . . . Total Part Build Rating . | . . . Parts Repaired 2 | . 2 . Time 52 | . 52 . Parts Recycled . | . . . Recycled Matter . | . . . Retrieved Matter . | . . . Retrieved Components . | . . . Parts Scanalyzed . | . . . Part Schematics Acquired . | . . . Parts Damaged . | . . . Bothacking | -11 -10 -9 ------------ Run | Yrd Mat Mat Used RIF Installer . | . . . Robots Hacked . | . . . Non-combat . | . . . Combat . | . . . Robot Hacks Applied . | . . . Relay Couplers Released . | . . . Fabnet Peak Effective % . | . . . Robots Rewired . | . . . Allies Hacked . | . . . Hacks Repelled . | . . . Allies | -11 -10 -9 -------- Run | Yrd Mat Mat Total Allies . | . . . Largest Group . | . . . Highest-Rated Group . | . . . Highest-Rated Ally . | . . . Total Orders . | . . . Ally Attacks . | . . . Total Damage . | . . . Kills . | . . . Allies Corrupted . | . . . Allies Melted . | . . . Intel | -11 -10 -9 ------- Run | Yrd Mat Mat Active Infowar (turns) 2590 | 40 1663 887 Structural 276 | . 107 169 Seismic 2439 | 40 1556 843 T.N.C. 471 | . . 471 Robot Analysis Total . | . . . Derelict Logs Recovered . | . . . Drone Launches . | . . . Drone Recoveries . | . . . Exploration | -11 -10 -9 ------------- Run | Yrd Mat Mat Turns Passed 3891 | 77 2511 1303 Spaces Moved 2399 | 50 1543 806 Core 6 | 3 . 3 Treads 38 | . 38 . Legs . | . . . Wheels 1867 | 47 1505 315 Hover 488 | . . 488 Flight . | . . . Fastest Speed 50 | 50 80 56 Average Speed 115 | 85 119 108 Slowest Speed 240 | 90 240 200 Overloaded Moves . | . . . Propulsion Burnouts . | . . . Robots Hopped . | . . . Potential Cave-ins . | . . . Cave-ins Triggered . | . . . Exploration Rate (%) 50 | 3 98 51 Regions Visited 2 Branch Regions . Pre-discovered Areas . | . . . Known Exits Taken . | . . . Unknown Exits Taken 2 | 1 1 . Scrap Searched . | . . . Spaces Dug 21 | . 9 12 Terrain Destroyed 52 | . 12 40 Melee . | . . . Projectile 24 | . 12 12 AOE 28 | . . 28 Terrain Rammed . | . . . Walls Destroyed . | . . . Machines Disabled . | . . . Actions | -11 -10 -9 --------- Run | Yrd Mat Mat Total 3209 | 69 1997 1143 Wait 384 | . 216 168 Move 2397 | 49 1542 806 Hop . | . . . Pick Up 78 | 7 49 22 Fast Attach 16 | 7 6 3 Attach 18 | . 4 14 Detach 8 | . 2 6 Swap 46 | 1 24 21 Drop 82 | . 35 47 Fire 175 | 5 118 52 Melee . | . . . Ram 5 | . 1 4 Kick . | . . . Crush . | . . . Escape Stasis . | . . . Rewire . | . . . Trap . | . . . Miscellaneous . | . . . Route ------- -11/Scrapyard -10/Materials (discovered 5 exits: *Mat x3 / [*Min x2]) -9/Materials (discovered 2 exits: [*Mat] / [*Min]) History --------- Turn | Location | Event 19 | -11/Scrapyard | Discovered new exit (range 16) 78 | -11/Scrapyard | Entered Materials 214 | -10/Materials | Discovered new exit (range 16) 310 | -10/Materials | Build established: Mutant 754 | -10/Materials | Discovered new exit (range 13) 895 | -10/Materials | Discovered new exit (range 3) 933 | -10/Materials | Build established: Scavenger-Mutant 1075 | -10/Materials | Discovered new exit (range 8) 1254 | -10/Materials | Discovered new exit (range 15) 2168 | -10/Materials | Build established: Hauler-Mutant 2391 | -10/Materials | Repaired Hover Unit 2418 | -10/Materials | Repaired Hover Unit 2589 | -10/Materials | Entered another Materials area 2589 | -9/Materials | Evolved 2 slots: Utility x2 2820 | -9/Materials | Discovered new exit (range 13) 3656 | -9/Materials | Core integrity fell below 50% 3665 | -9/Materials | Discovered new exit (range 10) 3892 | -9/Materials | Self-destructed Last Messages --------------- >>Trojan(Botnet) Trojan loaded successfully. Testing... Terminal linked with 1 system. Awaiting botnet instructions. 03662_ Acquired Shotgun. 03665_ EXIT=FOUND 03672_ K-01 Serf cleans the Pressure Siphon. 03693_ Acquired Mining Laser. 03776_ K-01 Serf collects debris. 03815_ K-01 Serf cleans the Repair Station. 03819_ K-01 Serf collects debris. 03857_ Mining Laser destroyed. 03864_ Acquired Hrd. Light Armor Plating. 03870_ Critical hit (Burn: +37). 03870_ Slammed into K-01 Serf. 03873_ Hover Unit destroyed. 03880_ Acquired Arm. Wheel. 03886_ Imp. Hover Unit destroyed. 03892_ Seismic Detector destroyed. Map ----- +----------------------------------------------------+ | ###########???????????????# ## ????????????? | | ########################### ?????????????? | | ??????????????? | | ??????????????? | | #????????????????? | | ###+######################## #?????????????????? | | # ######?????# # #?????????????????? | | + #??????????# """ # #?????????????????? | | # #??????????# """"" + #?????????????????? | | # #??????????# """"" # #?????????????????? | | # #??????????# """"" ## ##?????????????????? | | # #??????????# """ ## #??????????????????? | | ########??????????# ## #??????????????????? | | ??????????????????# ## #??????????????????? | | ??????????????????# ##k#??????????????????? | | ??????????????????########### #??????????????????? | | ????????????###+????#########Y#??????????????????? | | ??????????? ### #??????????????????? | | ??????????? + #??????????????????? | | ??????????????????### #??????????????????? | | ????????????????????# u #??????????????????? | | ??????????????????### """ss #??????????????????? | | ???????????a????? + """ss #??????????????????? | | ??????????????????### """ !#??????????????????? | | ##?#????????????????# #??????????????????? | | """"????????????????#####@#####??????????????????? | | "! ???????????????????? ?????????????????????? | | ??????????????????# ???????????????????? | | ????????????????? ?????????????????? | | < ??????????????? k#######+????????????????? | | ?????????????? ????????????????????????? | | ?????????????###### ????????????????????????? | | ##???????????????????# ????????????????????????? | | ?????????????????????# ????????????????????????? | | ?????????????????????# ????????????????????????? | | ?????????????????????# ????????????????????????? | | ?????????????????????# ????????????????????????? | | ?????????????????????# ?????????????????????????? | | ?????????????????????# ?????????????????????????? | | ###??????????????????# ?????????????????????????? | | #???????????????????? ?????????????????????????? | | #????????????a?????????????????????????????????? | | #??????????????????????????????????????????????? | | #??????????????????????????????????????????????? | | #??????????????????????????????????????????????? | | " #??????????????????????????????????????????????? | | " #??????????????????????????????????????????????? | | " #??????????????????????????????????????????????? | | #??????????????????????????????????????????????? | | ###??????????????????????????????????????????????? | +----------------------------------------------------+ Best States ------------- Heat Dissipation 38 Energy Generation 14 Energy Capacity 280 Matter Stores 300 Matter Capacity 300 Sight Range 16 Terrain Scan Density 10 Armor Coverage 150 Evasion (%) 53 Recoil Reduction 2 Offensive Hacking 10 Item Schematics ----------------- None Robot Schematics ------------------ None Fabricated ------------ Nothing Repaired ---------- Hover Unit | 53% | -10/Materials Hover Unit | 66% | -10/Materials Alien Tech Used ----------------- None Achievements -------------- None Challenges ------------ None Game ------ Seed SwordClaymoresMachine Manual? 0 Play Time 00:50:51 Cumulative 150.9 hours Start 2025.06.12 @ 19:08:02 End 2025.06.12 @ 20:12:46 Sessions 3 Manual Loads 0 Difficulty Rogue Special Mode None Game No. 101 Rogue 101 Adventurer 0 Explorer 0 Win Type - Total 1 Types 1/0/0/0/0/0/0/0/0/0 Lore% 49 Gallery% 52 Achievement% 47 Wizard Run 0 Options --------- Layout 1 ASCII 0 Keyboard 0 Movement Mouse Keybinds 0 Fullscreen 1 Font 24/Smallcaps Map View 50x35 Zoom Use 0% Tactical HUD 1 Map Filters NONE Filters NONE Steam 1 RUN: 8324c200-209b-4e8d-87bd-bbee5b6f4925